bitfinex-derivatives/quotes_ETHF0:USTF0_20240905
["timestamp","ask_amount","ask_price","bid_price","bid_amount"]
[1725503475490,3.6098,2451.6,2451.5,0.28552]
[1725503475691,3.6098,2451.6,2451.4,0.66843]
[1725503475888,4.9298,2451.6,2450.9,7.4048]
[1725503476084,3.2078,2451.3,2451.0,0.3986]
[1725503476286,3.2078,2451.3,2450.9,7.4048]
[1725503476287,2.0922,2451.2,2450.9,4.197]
[1725503476490,0.28557,2451.1,2450.9,4.197]
[1725503476696,2.4976,2451.2,2450.8,0.6693]
[1725503476891,2.78316,2451.2,2450.8,0.6693]
[1725503477999,1.46316,2451.2,2450.8,0.6693]
[1725503478294,3.2078,2451.0,2450.8,0.6693]
[1725503478502,1.46316,2451.2,2450.8,0.6693]
[1725503478894,3.2078,2451.0,2450.8,0.6693]
[1725503479498,1.46316,2451.2,2450.8,0.6693]
[1725503480292,3.2078,2451.0,2450.8,0.6693]
[1725503481297,0.4054,2451.2,2451.1,0.28557]
[1725503481904,3.2078,2451.3,2451.2,0.28556]
[1725503482797,0.7708,2451.5,2450.9,0.3811]
[1725503482798,0.3848,2451.5,2451.3,0.28554]
[1725503483096,0.3805,2451.4,2451.3,0.28554]
[1725503483598,0.389,2451.6,2451.0,6.3778]
[1725503483905,0.389,2451.6,2451.1,0.3986]
[1725503483906,0.7695,2451.6,2451.1,0.3986]
[1725503484094,0.3805,2451.6,2451.5,0.28552]
[1725503484294,3.2078,2451.7,2451.6,0.28551]
[1725503486594,1.43868,2451.9,2451.6,0.28551]
[1725503487292,1.1532,2451.9,2451.7,0.2855]
[1725503487887,1.1532,2451.9,2451.5,0.4075]
[1725503487888,1.43868,2451.9,2451.6,0.2855]
[1725503488604,1.1532,2451.9,2451.7,0.28549]
[1725503489999,3.2078,2452.0,2451.9,0.28547]
[1725503490392,1.1758,2452.1,2451.5,0.4075]
[1725503490393,1.1758,2452.1,2452.0,0.28546]
[1725503491002,0.7868,2452.1,2452.0,0.28546]
[1725503496800,3.16307002,2452.6,2452.0,4.0784]
[1725503496801,3.2078,2452.6,2452.0,4.0784]
[1725503497001,3.2078,2452.6,2452.5,0.2854]
[1725503497204,3.8897,2452.6,2452.3,0.28542]
[1725503497405,0.28541,2452.5,2452.3,0.28542]
[1725503497608,0.28544,2452.2,2452.1,0.00612295]
[1725503497805,6.66324,2452.2,2452.1,0.00612295]
[1725503498005,10.74164,2452.2,2452.1,0.00612295]
[1725503498203,17.45524,2452.2,2452.1,0.00612295]
[1725503498406,17.45524,2452.2,2451.5,3.2078]
[1725503498407,0.28547,2451.9,2451.5,0.28551]
[1725503498610,0.3978,2451.8,2451.5,0.28551]
[1725503499212,3.2078,2451.7,2451.5,0.28551]
[1725503499512,0.40392295,2451.8,2451.6,0.28551]
[1725503500421,0.62291396,2451.7,2451.6,0.28551]
[1725503500609,4.01645809,2451.7,2451.1,2.50672066]
[1725503500802,4.01645809,2451.7,2451.0,3.2078]
[1725503500803,2.25425375,2451.6,2451.2,1.38502661]
[1725503501009,2.66289772,2451.5,2451.0,3.2078]
[1725503501308,2.40790053,2451.4,2451.1,3.68317271]
[1725503501503,3.76147296,2451.3,2451.2,3.45556]
[1725503501711,3.76147296,2451.3,2451.2,7.186036]
[1725503502015,3.76147296,2451.3,2451.2,5.265236]
[1725503502210,3.76147296,2451.3,2451.2,11.265236]
[1725503502514,3.13854767,2451.3,2451.2,2.46038654]
[1725503502715,3.13854767,2451.3,2451.2,8.46038654]
[1725503503417,3.13854767,2451.3,2451.2,2.74594654]
[1725503503718,3.13854767,2451.3,2451.2,8.74594654]
[1725503503921,3.13854767,2451.3,2451.2,9.56014654]
[1725503504929,3.13854767,2451.3,2451.2,6.24515548]
[1725503505219,3.13854767,2451.3,2451.2,6.53071548]
[1725503505611,3.13854767,2451.3,2451.2,0.53071548]
[1725503505821,3.13854767,2451.3,2451.2,6.53071548]
[1725503506511,0.4009,2451.6,2451.5,0.28552]
[1725503506708,4.4801,2451.6,2451.5,0.28552]
[1725503509014,4.0792,2451.6,2451.5,0.28552]
[1725503509220,4.0792,2451.6,2451.5,0.66859276]
[1725503510109,0.3718,2451.7,2451.6,0.28551]
[1725503510517,4.451,2451.7,2451.6,0.28551]
[1725503516416,0.00612295,2451.8,2451.7,0.2855]
[1725503516723,0.00612295,2451.8,2451.7,1.58803269]
[1725503516724,4.08532295,2451.8,2451.7,1.58803269]
[1725503517126,4.08532295,2451.8,2451.7,1.20963269]
[1725503517424,4.08532295,2451.8,2451.7,0.6216]
[1725503517919,7.29312295,2451.8,2451.7,0.6216]
[1725503518325,4.08532295,2451.8,2451.7,0.6216]
[1725503518629,4.08532295,2451.8,2451.7,0.82711689]
[1725503520221,0.00612295,2451.8,2451.7,1.54086689]
[1725503520428,0.00612295,2451.8,2451.7,1.92389539]
[1725503520622,0.00612295,2451.8,2451.7,1.92389414]
[1725503522120,3.2078,2452.4,2451.8,0.71372]
[1725503522322,4.0792,2452.2,2452.1,0.28545]
[1725503522818,4.4795,2452.2,2452.1,0.28545]
[1725503523916,4.4795,2452.2,2451.8,3.2078]
[1725503524120,4.0792,2451.9,2451.8,3.49329]
[1725503525222,4.0792,2451.9,2451.8,3.87632148]
[1725503526121,0.4003,2452.2,2452.1,0.28545]
[1725503526620,4.4795,2452.2,2452.1,0.28545]
[1725503527225,4.4795,2452.2,2452.1,0.66844058]
[1725503527620,4.4795,2452.2,2452.0,0.28546]
[1725503527827,4.0792,2452.1,2452.0,0.28546]
[1725503528025,4.0792,2452.1,2452.0,0.66848136]
[1725503528322,4.0792,2452.1,2452.0,0.28546]
[1725503529426,4.0792,2452.1,2452.0,0.38302388]
[1725503529633,8.607,2452.1,2451.9,0.28547]
[1725503529828,4.4803,2452.0,2451.9,0.28547]
[1725503530029,4.4803,2452.0,2451.9,0.66850801]
[1725503533027,4.4803,2452.0,2451.9,0.28547]
[1725503533224,4.4803,2452.0,2451.9,0.66850128]
[1725503534536,0.4003,2452.2,2452.1,0.28545]
[1725503534741,4.4795,2452.2,2452.1,1.28105026]
[1725503535633,4.0792,2452.2,2452.1,4.48885026]
[1725503536133,4.0792,2452.2,2452.1,3.49325]
[1725503536331,0.4063,2452.3,2452.2,0.28544]
[1725503536531,0.4063,2452.3,2452.2,0.8979323]
[1725503536737,0.4063,2452.3,2452.2,1.28088993]
[1725503537342,0.4063,2452.3,2452.2,0.66839763]
[1725503538034,0.00612295,2452.4,2452.3,0.28543]
[1725503538236,0.00612295,2452.4,2452.3,1.28083473]
[1725503539332,0.00612295,2452.4,2452.3,0.28543]
[1725503539533,0.00612295,2452.4,2452.3,0.66835743]
[1725503544344,0.00612295,2452.4,2452.3,0.28543]
[1725503544645,0.00612295,2452.4,2452.3,0.66835817]
[1725503545135,4.08532295,2452.4,2452.1,3.2078]
[1725503545341,4.487,2452.3,2452.2,0.28544]
[1725503546941,4.487,2452.3,2452.2,0.99904]
[1725503546942,4.0792,2452.3,2452.2,0.99904]
[1725503547141,0.00612295,2452.4,2452.3,0.28543]
[1725503547142,0.38272295,2452.4,2452.3,0.28543]
[1725503547444,4.46192295,2452.4,2452.3,0.28543]
[1725503550637,4.08532295,2452.4,2452.3,0.99901]
[1725503550841,0.00612295,2452.4,2452.3,4.16901]
[1725503551046,0.00612295,2452.4,2452.3,4.55192909]
[1725503552544,0.00612295,2452.4,2452.3,4.16901]
[1725503552740,0.00612295,2452.4,2452.3,4.55192932]
[1725503552948,0.00612295,2452.4,2452.3,4.93484094]
[1725503553247,0.378,2452.6,2452.5,0.2854]
[1725503553450,4.4572,2452.6,2452.5,0.2854]
[1725503561743,4.4572,2452.6,2452.3,0.00612295]
[1725503561954,0.7854,2452.5,2452.4,0.28542]
[1725503562458,4.8646,2452.5,2452.4,0.28542]
[1725503562653,4.8646,2452.5,2452.4,0.66834235]
[1725503563346,4.8646,2452.5,2452.4,0.66834202]
[1725503563753,4.8646,2452.5,2452.4,0.28542]
[1725503563948,4.8646,2452.5,2452.3,0.00612295]
[1725503564153,0.28544,2452.2,2451.9,4.197]
[1725503564354,4.0792,2452.0,2451.9,4.197]
[1725503564856,4.36466,2452.0,2451.9,4.197]
[1725503565156,4.36466,2452.0,2451.7,0.64336224]
[1725503565157,8.89246,2452.0,2451.7,0.64336224]
[1725503565355,4.0792,2451.8,2451.7,0.64336224]
[1725503565748,4.0792,2451.8,2451.7,0.92886224]
[1725503565953,4.0792,2451.8,2451.7,0.64336224]
[1725503566465,4.0792,2451.8,2451.7,0.92886224]
[1725503568358,4.0792,2451.8,2451.7,0.64336224]
[1725503569954,0.38,2451.9,2451.7,0.64336224]
[1725503570150,4.0792,2451.8,2451.7,0.00612295]
[1725503576861,4.0792,2451.8,2451.7,0.29162295]
[1725503581658,4.0792,2451.8,2451.7,0.00612295]
[1725503581865,4.4884,2451.8,2451.7,0.00612295]
[1725503582563,4.77389,2451.8,2451.7,0.00612295]
[1725503583271,4.77389,2451.8,2450.8,3.2078]
[1725503583272,3.79365,2451.3,2450.8,3.2078]
[1725503583473,3.79365,2451.3,2450.6,0.61271678]
[1725503583474,0.802,2451.2,2451.1,0.28557]
[1725503583859,4.59565,2451.2,2450.5,8.33651628]
[1725503584064,3.79365,2450.8,2450.6,0.28563]
[1725503584371,3.79365,2450.8,2450.7,0.28561]
[1725503585163,0.00612295,2450.9,2450.8,0.2856]
[1725503585371,3.79977295,2450.9,2450.8,0.2856]
[1725503586964,3.79977295,2450.9,2450.8,0.622]
[1725503587164,0.00612295,2450.9,2450.8,10.54381]
[1725503587666,2.95e-06,2450.9,2450.8,15.33782]
[1725503588664,2.95e-06,2450.9,2450.8,15.72093131]
[1725503588866,0.3891,2451.5,2451.4,0.28553]
[1725503589273,4.18275,2451.5,2451.4,0.28553]
[1725503589670,3.79365,2451.5,2451.4,0.28553]
[1725503590268,3.79365,2451.5,2451.1,0.3364]
[1725503590468,3.79365,2451.3,2451.2,0.28556]
[1725503600071,3.79365,2451.3,2451.1,0.3364]
[1725503600271,3.79365,2451.3,2451.2,0.28556]
[1725503608375,3.79365,2451.3,2451.2,0.66867933]
[1725503609379,0.3954,2451.6,2451.5,0.28552]
[1725503609571,0.3954,2451.6,2451.5,0.66863933]
[1725503609776,4.18905,2451.6,2451.5,0.28552]
[1725503609977,4.18905,2451.6,2451.5,0.66859502]
[1725503610885,3.79365,2451.6,2451.5,5.20287241]
[1725503611186,4.19675,2451.6,2451.5,1.99507241]
[1725503611381,4.19675,2451.6,2451.5,1.99507173]
[1725503611578,4.19675,2451.6,2451.5,1.38240502]
[1725503611976,0.39142295,2451.7,2451.6,0.28551]
[1725503612179,0.39142295,2451.7,2451.6,0.66858502]
[1725503612180,4.18507295,2451.7,2451.6,0.66858502]
[1725503612590,4.18507295,2451.7,2451.6,1.28122171]
[1725503613189,4.18507295,2451.7,2451.6,1.28119225]
[1725503613491,4.18507295,2451.7,2451.6,0.66855698]
[1725503613885,4.18507295,2451.7,2451.6,1.28118814]
[1725503616689,0.00612295,2451.7,2451.6,3.31496814]
[1725503616889,0.00612295,2451.7,2451.6,14.49592131]
[1725503617486,0.00612295,2451.7,2451.6,14.49579574]
[1725503617685,0.00612295,2451.7,2451.6,15.20957574]
[1725503619394,0.00612295,2451.7,2451.6,13.44847]
[1725503619586,0.00612295,2451.7,2451.6,15.2095719]
[1725503619986,0.00612295,2451.7,2451.6,14.74057842]
[1725503620200,0.00612295,2451.7,2451.6,12.87826413]
[1725503620698,0.00612295,2451.7,2451.6,2.79906413]
[1725503620900,0.00612295,2451.7,2451.6,0.28551]
[1725503621091,3.79977295,2451.7,2451.6,0.28551]
[1725503622093,3.79977295,2451.7,2451.6,2.27675413]
[1725503625898,3.79977295,2451.7,2451.6,1.66415543]
[1725503629198,3.79977295,2451.7,2451.6,1.2811313]
[1725503629502,3.79977295,2451.7,2451.6,1.66416827]
[1725503631999,3.79977295,2451.7,2451.6,0.66854697]
[1725503633905,3.79977295,2451.7,2451.6,1.28116396]
[1725503634906,3.79977295,2451.7,2451.6,1.99494396]
[1725503637298,0.00612295,2451.7,2451.6,1.99488567]
[1725503637494,0.00612295,2451.7,2451.6,2.33118567]
[1725503639010,0.00612295,2451.7,2451.6,3.04496567]
[1725503639208,2.95e-06,2451.7,2451.6,13.88967426]
[1725503640705,2.95e-06,2451.7,2451.6,3.81047426]
[1725503641111,2.95e-06,2451.7,2451.6,13.88967426]
[1725503641809,2.95e-06,2451.7,2451.6,7.88967426]
[1725503642010,2.95e-06,2451.7,2451.6,13.12416567]
[1725503642205,2.95e-06,2451.7,2451.6,2.33118567]
[1725503642407,2.95e-06,2451.7,2451.6,12.07408567]
[1725503642711,2.95e-06,2451.7,2451.6,7.99488567]
[1725503642908,2.95e-06,2451.7,2451.6,6.99929]
[1725503643108,2.95e-06,2451.7,2451.6,7.99487025]
[1725503643820,2.95e-06,2451.7,2451.6,8.76038434]
[1725503644417,2.95e-06,2451.7,2451.6,7.99487025]
[1725503645508,2.95e-06,2451.7,2451.6,7.99485896]
[1725503646418,2.95e-06,2451.7,2451.6,6.99929]
[1725503646617,2.95e-06,2451.7,2451.6,8.37736746]
[1725503646812,2.95e-06,2451.7,2451.6,2.37736746]
[1725503647214,2.95e-06,2451.7,2451.6,2.76036667]
[1725503648512,3.79365295,2451.7,2451.6,2.76036667]
[1725503648810,3.79365295,2451.7,2451.6,1.28106805]
[1725503649620,3.79365295,2451.7,2451.6,0.28551]
[1725503649804,3.79365295,2451.7,2451.6,1.28117589]
[1725503653015,3.79365295,2451.7,2451.6,1.28118479]
[1725503654813,3.79365295,2451.7,2451.6,4.48898479]
[1725503655115,3.79365295,2451.7,2451.6,4.48898544]
[1725503655321,3.79365295,2451.7,2451.6,5.25459436]
[1725503656118,3.79365295,2451.7,2451.6,3.49331]
[1725503656319,3.79365295,2451.7,2451.6,5.2545942]
[1725503656527,3.79365295,2451.7,2451.6,5.86722101]
[1725503657023,3.79365295,2451.7,2451.6,7.01586628]
[1725503657223,3.79365295,2451.7,2451.3,2.95598126]
[1725503657224,7.32000295,2451.7,2451.3,0.63740761]
[1725503657516,4.19069239,2451.4,2451.1,0.28556]
[1725503657719,1.32,2451.4,2451.2,0.38315077]
[1725503657924,1.32,2451.4,2451.3,0.38315077]
[1725503658121,10.19069239,2451.4,2451.1,0.28556]
[1725503658417,2.87069239,2451.2,2451.1,0.28556]
[1725503661326,2.87069239,2451.2,2451.0,0.28557]
[1725503661510,2.87069239,2451.2,2450.5,1.07593872]
[1725503661511,2.87069239,2450.9,2450.5,3.21392295]
[1725503661715,1.564,2450.8,2450.6,0.28562]
[1725503662214,2.87069239,2450.7,2450.6,0.28562]
[1725503663116,2.87069239,2450.7,2450.5,0.00612295]
[1725503663316,2.87069239,2450.6,2450.5,0.29176295]
[1725503668232,2.87069239,2450.6,2450.5,0.00612295]
[1725503668525,2.87069239,2450.6,2450.5,1.61176295]
[1725503668920,2.87069239,2450.6,2450.5,0.29176295]
[1725503679630,2.87069239,2450.6,2450.5,0.78296295]
[1725503679828,2.87069239,2450.6,2450.5,1.29676295]
[1725503682923,2.87069239,2450.6,2450.5,0.00612295]
[1725503683136,2.87069239,2450.6,2450.5,0.29176295]
[1725503684037,2.87069239,2450.6,2450.5,0.00612295]
[1725503684632,2.87069239,2450.6,2450.5,0.29176295]
[1725503687533,2.87069239,2450.6,2450.5,3.49956295]
[1725503688538,2.87069239,2450.6,2450.5,0.29176295]
[1725503690036,3.37559239,2450.6,2450.5,0.29176295]
[1725503691944,2.87069239,2450.6,2450.5,0.29176295]
[1725503693234,2.87069239,2450.6,2450.5,0.80896295]
[1725503693628,2.87069239,2450.6,2450.5,0.29176295]
[1725503698744,2.87069239,2450.6,2450.5,0.00612295]
[1725503698946,7.68412239,2450.6,2450.5,0.00612295]
[1725503699340,14.6086,2450.6,2449.6,3.2078]
[1725503699651,1.32,2450.0,2449.9,0.2857]
[1725503699945,4.19069239,2450.0,2449.9,0.48817822]
[1725503700247,4.19069239,2450.0,2449.9,0.2857]
[1725503700544,4.19069239,2450.0,2449.7,0.00612295]
[1725503700746,2.87069239,2449.8,2449.7,0.49335163]
[1725503702850,6.0,2449.8,2449.3,3.49357]
[1725503703151,6.0,2449.8,2448.7,7.55362]
[1725503703152,1.32,2449.4,2448.6,4.27761577]
[1725503703348,3.2078,2449.2,2449.0,0.28581]
[1725503703944,3.2078,2449.2,2449.1,0.2858]
[1725503704143,0.9938,2449.3,2449.1,0.2858]
[1725503705446,0.9938,2449.3,2449.2,0.28579]
[1725503705447,0.495,2449.3,2449.2,0.28579]
[1725503707148,3.2078,2449.5,2449.4,0.28576]
[1725503708053,3.2078,2449.5,2449.3,0.28577]
[1725503708460,3.7182,2449.5,2449.3,0.28577]
[1725503708657,3.7182,2449.5,2449.2,1.0379]
[1725503708859,3.7182,2449.5,2449.2,0.28578]
[1725503709045,7.8006,2449.5,2449.1,0.80009]
[1725503709246,7.8006,2449.5,2448.9,0.00612295]
[1725503709247,0.5008,2449.4,2448.9,0.00612295]
[1725503709455,3.2078,2449.2,2448.9,0.29194295]
[1725503709965,0.5028,2449.1,2448.9,0.29194295]
[1725503710552,0.5414,2449.0,2448.9,0.29194295]
[1725503710852,0.5028,2449.1,2449.0,0.28581]
[1725503712253,3.2078,2449.2,2449.1,0.2858]
[1725503715962,3.2078,2449.5,2449.3,0.28577]
[1725503716264,3.7061,2449.5,2449.3,0.28577]
[1725503716455,3.7061,2449.5,2449.4,0.28576]
[1725503716961,3.2078,2449.8,2449.7,0.28573]
[1725503717654,0.5005,2450.0,2449.6,0.20896034]
[1725503717854,0.5005,2450.0,2449.9,0.28571]
[1725503718060,3.2078,2450.1,2450.0,0.28569]
[1725503724165,0.00612295,2450.2,2450.1,0.28568]
[1725503729178,0.52552295,2450.2,2450.1,0.28568]
[1725503732175,0.00612295,2450.2,2450.1,0.28568]
[1725503734977,0.83373,2450.6,2450.5,0.28564]
[1725503734978,3.2078,2450.6,2450.5,0.28564]
[1725503735473,3.2078,2450.6,2450.4,0.28564]
[1725503735673,0.5225,2450.5,2450.4,0.28564]
[1725503736267,7.7833,2450.5,2450.2,0.00612295]
[1725503736480,3.2078,2450.3,2450.2,0.00612295]
[1725503736672,0.5465,2450.4,2450.2,0.00612295]
[1725503736876,0.5225,2450.5,2450.2,0.00612295]
[1725503737176,0.5225,2450.5,2450.4,0.28565]
[1725503737578,0.5225,2450.5,2450.2,0.00612295]
[1725503738075,0.5225,2450.5,2450.4,0.28565]
[1725503743971,3.2078,2450.6,2450.5,0.28564]
[1725503744175,0.00612295,2450.7,2450.3,1.557]
[1725503744481,0.00612295,2450.7,2450.6,0.28563]
[1725503746976,0.00612295,2450.7,2450.5,0.28563]
[1725503747184,3.2078,2450.6,2450.5,0.28563]
[1725503747581,7.2886,2450.6,2450.5,0.28563]
[1725503748080,3.2078,2450.6,2450.5,0.28563]
[1725503751676,3.2078,2450.6,2450.5,0.80623]
[1725503752389,0.00612295,2450.7,2450.6,0.28563]
[1725503757482,0.00612295,2450.7,2450.6,0.78443]
[1725503759778,0.00612295,2450.7,2450.6,0.28563]
[1725503762784,0.00612295,2450.7,2450.6,4.36643]
[1725503762990,0.00612295,2450.7,2450.6,0.28563]
[1725503763394,4.111,2451.2,2450.6,13.54643]
[1725503763694,4.111,2451.2,2451.1,0.28556]
[1725503763695,0.5419,2451.2,2451.1,0.28556]
[1725503763991,0.5419,2451.2,2451.1,0.48811076]
[1725503770205,7.8019,2451.2,2450.7,0.5189]
[1725503770390,3.2078,2450.9,2450.6,0.28562]
[1725503770586,1.3461,2450.8,2450.4,0.28564]
[1725503770788,3.2078,2450.6,2450.4,0.28564]
[1725503771296,3.2078,2450.6,2450.3,1.33705]
[1725503771503,3.2078,2450.6,2450.3,0.28565]
[1725503773097,3.2078,2450.6,2450.3,0.28566]
[1725503773686,3.2078,2450.6,2450.4,0.28565]
[1725503774905,0.28564,2450.5,2450.2,0.00612295]
[1725503775203,3.2078,2450.3,2450.2,0.00612295]
[1725503776296,3.2078,2450.3,2450.2,0.29179295]
[1725503776611,1.0848,2450.4,2450.2,0.29179295]
[1725503777299,1.0848,2450.4,2450.3,0.28566]
[1725503777800,5.1656,2450.4,2450.3,0.28566]
[1725503778003,1.0848,2450.4,2450.3,0.28566]
[1725503778602,1.0848,2450.4,2450.2,0.29179295]
[1725503778904,1.0848,2450.4,2450.3,0.28566]
[1725503782496,4.2926,2450.4,2450.3,0.28566]
[1725503783401,4.2926,2450.4,2450.2,0.29178295]
[1725503783603,4.2926,2450.4,2450.3,0.28566]
[1725503788907,0.28566,2450.3,2450.2,0.00612295]
[1725503790709,6.44726,2450.4,2450.2,0.00612295]
[1725503790909,6.44726,2450.4,2450.2,0.29179295]
[1725503791407,0.28566,2450.3,2450.2,0.00612295]
[1725503791609,6.1616,2450.4,2450.2,0.00612295]
[1725503792109,0.28566,2450.3,2450.2,0.00612295]
[1725503793613,10.36726,2450.3,2450.2,0.00612295]
[1725503793801,10.0816,2450.3,2449.7,0.5363]
[1725503794005,9.32481818,2450.4,2449.7,0.5363]
[1725503794006,1.32,2450.1,2449.7,0.5363]
[1725503794207,1.32,2450.1,2449.9,0.2857]
[1725503794409,0.5472,2450.0,2449.9,0.2857]
[1725503794921,4.6288,2450.0,2449.9,0.2857]
[1725503795108,5.1615,2450.0,2449.8,0.83601]
[1725503795311,3.2078,2449.9,2449.8,0.83601]
[1725503797910,3.21392295,2450.2,2450.1,0.28568]
[1725503798603,0.00612295,2450.2,2450.1,0.28568]
[1725503807215,3.73512295,2450.2,2450.1,0.28568]
[1725503807417,7.81672295,2450.2,2449.9,0.5707]
[1725503807619,0.2857,2450.0,2449.7,0.54462295]
[1725503807814,3.17,2450.1,2449.7,0.00612295]
[1725503807815,3.2078,2449.8,2449.7,0.00612295]
[1725503808217,4.2769,2449.8,2449.7,0.00612295]
[1725503809222,4.2769,2449.8,2449.3,0.5385]
[1725503809223,17.5293,2449.8,2449.3,0.5385]
[1725503809414,17.5293,2449.8,2449.2,0.28579]
[1725503809415,3.2078,2449.5,2449.2,0.28579]
[1725503809718,0.5694,2449.4,2449.2,0.28579]
[1725503810323,0.5694,2449.4,2449.1,0.83251295]
[1725503810921,0.5479,2449.3,2449.1,0.83251295]
[1725503811716,0.5479,2449.3,2449.2,0.28579]
[1725503811915,0.5694,2449.4,2449.1,0.54672295]
[1725503812411,0.5694,2449.4,2449.2,0.28579]
[1725503812611,0.521,2449.7,2449.1,0.54672295]
[1725503812816,3.2078,2449.5,2449.4,0.28576]
[1725503813116,1.0723,2449.7,2449.4,0.28576]
[1725503814928,1.0723,2449.7,2449.5,0.28575]
[1725503815225,0.5513,2449.7,2449.5,0.28575]
[1725503816622,0.5513,2449.7,2449.4,0.83116]
[1725503817331,0.5513,2449.7,2449.5,0.28575]
[1725503818224,0.5513,2449.7,2449.5,0.84435]
[1725503818616,0.5513,2449.7,2449.6,0.28574]
[1725503818819,0.5513,2449.7,2449.6,0.49289084]
[1725503819422,0.5513,2449.7,2449.6,0.20715084]
[1725503819830,0.5513,2449.7,2449.6,0.49289084]
[1725503820219,0.5513,2449.7,2449.5,0.84435]
[1725503820427,0.5513,2449.7,2449.5,0.5586]
[1725503820630,4.0824,2449.6,2449.1,0.00612295]
[1725503820927,4.0824,2449.6,2449.2,0.28578]
[1725503820928,3.2078,2449.4,2449.2,0.28578]
[1725503821329,0.5245,2449.3,2449.1,0.29191295]
[1725503822632,0.5245,2449.3,2449.2,0.28579]
[1725503823539,0.5245,2449.3,2449.1,0.29191295]
[1725503823928,0.5245,2449.3,2449.2,0.28579]
[1725503824329,13.7777,2449.3,2449.1,0.00612295]
[1725503824630,0.28581,2449.1,2448.8,0.28583]
[1725503824824,3.2078,2448.9,2448.8,0.28583]
[1725503825233,3.7665,2448.9,2448.8,0.28583]
[1725503827533,3.7665,2448.9,2448.6,0.21318777]
[1725503827534,7.3188,2449.3,2449.1,0.28579]
[1725503827735,0.5154,2449.2,2449.1,0.28579]
[1725503829231,3.2078,2449.3,2449.2,0.28579]
[1725503835630,3.2078,2449.3,2449.1,0.28579]
[1725503835932,3.2078,2449.3,2448.8,1.5732]
[1725503836132,3.2078,2449.3,2449.2,0.28579]
[1725503844163,3.90872271,2449.9,2449.2,0.28579]
[1725503844164,3.2078,2450.0,2449.3,0.71445]
[1725503844447,3.2078,2450.0,2449.9,0.28571]
[1725503845645,0.00612295,2450.2,2450.1,0.28568]
[1725503846944,0.00612295,2450.2,2450.0,1.064]
[1725503847136,3.2078,2450.1,2449.9,0.00612295]
[1725503847336,3.7044,2450.0,2449.9,0.00612295]
[1725503847545,3.99009,2450.0,2449.9,0.00612295]
[1725503847752,8.07169,2450.0,2449.9,0.00612295]
[1725503848149,3.2078,2450.1,2449.9,0.00612295]
[1725503848354,3.2078,2450.1,2450.0,0.28569]
[1725503848652,3.2078,2450.1,2450.0,1.37919]
[1725503850557,6.3778,2450.1,2449.9,0.00612295]
[1725503850743,0.5564,2450.0,2449.9,0.00612295]
[1725503851344,0.5564,2450.0,2449.9,0.29183295]
[1725503851748,3.2078,2450.1,2450.0,0.28569]
[1725503852346,10.4594,2450.1,2449.9,0.00612295]
[1725503852554,10.4594,2450.1,2449.9,0.29182295]
[1725503853155,6.3778,2450.1,2449.9,0.29182295]
[1725503858252,3.2078,2450.1,2450.0,0.28569]
[1725503858559,3.2078,2450.1,2449.9,0.00612295]
[1725503858752,3.2078,2450.1,2450.0,0.28569]
[1725503860245,3.2078,2450.1,2450.0,0.84579]
[1725503866159,3.2078,2450.1,2449.9,0.49701354]
[1725503867160,3.2078,2450.1,2450.0,0.28569]
[1725503867562,3.2078,2450.1,2450.0,0.83409]
[1725503875456,3.2078,2450.1,2449.9,0.49701354]
[1725503875658,0.5716,2450.0,2449.9,0.49701354]
[1725503880271,6.25889,2450.0,2449.9,0.00612295]
[1725503880473,4.93889,2450.0,2449.9,0.00612295]
[1725503880764,6.25889,2450.0,2449.9,0.00612295]
[1725503880957,5.9732,2450.0,2449.9,0.00612295]
[1725503881160,1.8916,2450.0,2449.9,0.00612295]
[1725503881562,0.5716,2450.0,2449.9,0.29183295]
[1725503881967,0.5716,2450.0,2449.9,0.00612295]
[1725503882169,0.85729,2450.0,2449.9,0.00612295]
[1725503883262,2.17729,2450.0,2449.9,0.00612295]
[1725503883462,6.25889,2450.0,2449.9,0.00612295]
[1725503887274,9.42210818,2450.0,2449.9,0.00612295]
[1725503889374,6.25889,2450.0,2449.9,0.00612295]
[1725503890472,9.96246081,2450.0,2449.9,0.00612295]
[1725503890671,6.25889,2450.0,2449.9,0.00612295]
[1725503891360,9.96246081,2450.0,2449.9,0.00612295]
[1725503891773,6.25889,2450.0,2449.9,0.00612295]
[1725503892165,9.96246081,2450.0,2449.9,0.00612295]
[1725503892769,6.25889,2450.0,2449.9,0.00612295]
[1725503893275,7.83678871,2450.0,2449.9,0.29183295]
[1725503893574,1.8916,2450.0,2449.9,0.29183295]
[1725503893773,1.8916,2450.0,2449.9,0.00612295]
[1725503893774,9.44247871,2450.0,2449.9,0.00612295]
[1725503894474,9.15678871,2450.0,2449.9,0.29183295]
[1725503895770,3.18358871,2450.0,2449.9,0.29183295]
[1725503895980,6.91137081,2450.1,2450.0,0.28569]
[1725503895981,6.39138871,2450.1,2450.0,0.28569]
[1725503896273,6.67706871,2450.1,2449.9,0.29182295]
[1725503896576,6.39138871,2450.1,2450.0,0.28569]
[1725503896774,6.39138871,2450.1,2450.0,0.83269]
[1725503897178,6.39138871,2450.1,2450.0,1.40359]
[1725503902273,6.39138871,2450.1,2450.0,1.93349]
[1725503902274,3.2078,2450.1,2450.0,1.93349]
[1725503903673,5.06721166,2450.2,2450.1,0.28568]
[1725503903879,8.27501166,2450.2,2450.1,0.28568]
[1725503905473,5.09142295,2450.2,2450.1,0.28568]
[1725503906074,9.37439376,2450.2,2450.0,1.6478]
[1725503906281,3.18208904,2450.1,2450.0,1.93349]
[1725503910387,6.38988904,2450.1,2450.0,1.93349]
[1725503915477,6.38988904,2450.1,2450.0,2.14068021]
[1725503917285,3.2078,2450.1,2450.0,2.14068021]
[1725503919194,3.18821199,2450.2,2450.1,0.28568]
[1725503919375,6.39601199,2450.2,2450.1,0.28568]
[1725503920592,4.53392295,2450.2,2450.1,0.28568]
[1725503920787,7.71774787,2450.2,2450.1,0.28568]
[1725503921086,4.50994787,2450.2,2450.1,0.28568]
[1725503921284,4.53392295,2450.2,2450.1,0.28568]
[1725503921686,1.32612295,2450.2,2450.1,0.28568]
[1725503921884,7.71793239,2450.2,2450.1,0.28568]
[1725503923478,4.53392295,2450.2,2450.1,0.28568]
[1725503923685,7.71813745,2450.2,2450.1,0.28568]